Cogmind - Beta 15 X1 @@@ ROGUE MODE // 2024.11.08 @ 19:35:49 Player: Some Pennies Result: Destroyed by X-87 Electro with Compact HERF Cannon Performance ------------- Evolutions (8) 4000 Regions Visited (16) 3200 Robots Destroyed (354) 1770 Value Destroyed (15859) 15859 Prototype IDs (30) 600 Alien Tech Used (0) 0 Bonus (7303) 7303 TOTAL SCORE: 32732 Bonus ------- High Alert Combat Kills 3006 Follower Combat Kills 1697 Entered Garrisons 600 Used RIF Installer 1500 Entered DSFs 500 Cogmind --------- Core Integrity 0/1450 Matter 75/300 Energy 49/100 System Corruption 44% Temperature Cool (7) Movement Flying (40) Location -2/Research Parts ------- > --- POWER (3) -------- (None) > --- PROPULSION (6) --- Improved Q-thruster > --- UTILITY (12) ----- Experimental Coolant Injector Quantum Shading Machine Improved Signal Interpreter Experimental Signal Interpreter Improved Hacking Suite Improved Hacking Suite Experimental Hacking Suite Relay Coupler [NC] (2) > --- WEAPON (2) ------- (None) > --- INVENTORY (5) ---- Advanced Terrain Scanner Advanced Transmission Jammer Cooled Plasma Cannon Improved Remote Datajack Peak State ------------ > --- POWER ------------ Light Quantum Reactor Light Quantum Reactor Light Quantum Reactor > --- PROPULSION ------- Biometal Medium Treads Biometal Medium Treads Biometal Medium Treads Biometal Leg Biometal Leg Centrium Leg > --- UTILITY ---------- Improved Cooling System Huge Storage Unit Experimental Signal Interpreter Quantum Capacitor Damper Plating Improved Hacking Suite Improved Hacking Suite Relay Coupler [NC] > --- WEAPON ----------- Compact HERF Cannon Enhanced Nova Cannon > --- INVENTORY -------- Reinforced Antimatter Reactor Biometal Leg Biometal Leg Centrium Leg Advanced Heat Sink Advanced Heat Sink Compact Matter Pod Quantum Shading Machine Improved Sensor Array Improved Signal Interpreter Advanced Terrain Scanner Advanced Transmission Jammer ECM Suite Improved Utility Shielding Centrium Light Armor Plating Graphene Brace Improved Force Field Antimissile System Relay Coupler [Demolisher] Advanced Component Analysis Suite Advanced Trap Extractor Cooled Plasma Cannon Tiamat Missile Launcher Improved Remote Datajack Plasma Sword [Rating: 170] Favorites ----------- Power Reinforced Antimatter Reactor Engine Reinforced Deuterium Engine Power Core Reinforced Fission Core Reactor Reinforced Antimatter Reactor Propulsion Light Treads Treads Light Treads Leg Biometal Leg Wheel Centrium Wheel Flight Unit Improved Q-thruster Utility Improved Signal Interpreter Device Improved Cooling System Storage Huge Storage Unit Processor Improved Signal Interpreter Hackware Hacking Suite Protection Improved Medium Armor Plating Weapon Phase Cannon Energy Gun Improved Spread Laser Energy Cannon Phase Cannon Ballistic Gun Improved Assault Rifle Launcher Gamma Bomb Array Special Weapon Improved Remote Datajack Impact Weapon Mace Slashing Weapon Scythe Piercing Weapon Lance Build | -11 -10 -9 -8 -8 -7 -7 -7 -7 -6 -6 -5 -5 -5 -4 -3 -2 ------- Run | Yrd Mat Mat Mat Gar Fac Gar Fac Gar Fac DSF Fac Was Fac Fac Res Res Slots Evolved 16 | . . 2 2 . 2 . . . 2 . 2 . . 2 2 2 Power 2 | . . . . . . . . . . . 1 . . . . 1 Propulsion 4 | . . 1 1 . . . . . . . . . . 2 . . Utility 10 | . . 1 1 . 2 . . . 2 . 1 . . . 2 1 Weapon . | . . . . . . . . . . . . . . . . . Parts Attached 262 | 8 7 34 37 15 2 18 12 14 . 3 22 17 11 2 25 35 Power 29 | 1 1 3 5 1 . 2 . . . 1 4 3 . . 5 3 Engine 11 | 1 1 3 3 1 . . . . . 1 1 . . . . . Core 6 | . . . 2 . . 1 . . . . 3 . . . . . Reactor 12 | . . . . . . 1 . . . . . 3 . . 5 3 Propulsion 77 | 2 . 13 12 5 1 9 4 3 . 1 5 2 . 1 4 15 Treads 64 | 2 . 13 12 5 1 5 4 2 . 1 5 2 . 1 4 7 Leg 9 | . . . . . . 2 . . . . . . . . . 7 Wheel 3 | . . . . . . 2 . 1 . . . . . . . . Hover . | . . . . . . . . . . . . . . . . . Flight 1 | . . . . . . . . . . . . . . . . 1 Utility 104 | 2 4 7 12 5 1 4 7 8 . 1 10 9 7 1 11 15 Device 37 | 1 1 2 5 1 . 1 2 1 . . 3 4 2 1 3 10 Storage 6 | 1 1 1 1 . . . 1 . . . . . . . . 1 Processor 6 | . 1 1 . . 1 . . . . . . . 1 . 1 1 Hackware 25 | . . 1 . 1 . 1 3 6 . . 4 2 4 . 1 2 Protection 30 | . 1 2 6 3 . 2 1 1 . 1 3 3 . . 6 1 Artifact . | . . . . . . . . . . . . . . . . . Weapon 52 | 3 2 11 8 4 . 3 1 3 . . 3 3 4 . 5 2 Energy Gun 14 | 2 . 6 4 . . . 1 . . . . . . . . 1 Energy Cannon 18 | . 1 1 1 1 . 2 . 2 . . 3 1 3 . 2 1 Ballistic Gun 7 | 1 . 3 1 1 . . . . . . . 1 . . . . Ballistic Cannon . | . . . . . . . . . . . . . . . . . Launcher 6 | . . . 1 1 . . . 1 . . . 1 1 . 1 . Special Weapon 3 | . 1 . . . . 1 . . . . . . . . 1 . Impact Weapon 1 | . . 1 . . . . . . . . . . . . . . Slashing Weapon 2 | . . . 1 . . . . . . . . . . . 1 . Piercing Weapon 1 | . . . . 1 . . . . . . . . . . . . Special Melee Weapon . | . . . . . . . . . . . . . . . . . Unidentified Prototypes 24 | . . 4 4 . . . 1 . . . 1 1 3 1 5 4 Corrupted Parts 5 | . . . . . . . . . . . . . . . 1 4 System Corruption 31 | . . . . . . . . . . . . . . . 7 24 Parts Lost 64 | . . 2 8 1 . 2 2 3 . 2 4 . 1 . 12 27 Power 6 | . . . . . . . . . . . . . . . 2 4 Propulsion 31 | . . 1 5 1 . 2 . 1 . 2 2 . . . 3 14 Utility 20 | . . 1 2 . . . 2 2 . . 2 . 1 . 5 5 Weapon 7 | . . . 1 . . . . . . . . . . . 2 4 Highest Loss Streak 16 | . . 1 3 1 . 1 1 1 . 1 1 . 1 . 3 16 To Critical Strikes 1 | . . . . . . 1 . . . . . . . . . . Average Backups 17 | 2 9 14 14 13 12 13 18 20 21 22 22 23 21 18 19 20 Power 1 | . 1 . 1 . . . . 1 2 2 2 2 2 2 1 . Propulsion 2 | . 2 3 1 . 1 . 4 5 5 4 2 . 2 1 1 1 Utility 9 | . 4 6 7 7 7 8 10 9 8 10 11 14 12 10 10 14 Weapon 3 | . 2 3 3 3 3 3 2 2 5 5 3 4 4 4 4 3 Tool/Special . | . . . . . . . . . . . . . . . . . Unused Backups 44 | . 3 7 8 5 . 5 4 1 . 1 3 2 1 . 1 3 Power 7 | . 1 . 1 1 . 1 1 . . . 2 . . . . . Propulsion 5 | . 1 1 1 . . . 2 . . . . . . . . . Utility 25 | . 1 5 3 3 . 4 . 1 . 1 1 2 . . 1 3 Weapon 4 | . . 1 1 . . . 1 . . . . . 1 . . . Tool/Special 3 | . . . 2 1 . . . . . . . . . . . . Average Slot Usage (%) 91 | . 100 99 98 99 98 97 99 92 83 86 88 77 72 83 76 79 Engine 4 | . 14 11 6 9 7 5 . . . . 2 . . . . . Reactor 4 | . . . . . . 1 7 7 6 6 4 6 11 10 8 10 Treads 23 | . 28 32 35 35 28 27 14 15 13 13 17 13 11 15 15 14 Wheel 2 | . . . . . . 2 15 11 6 6 2 1 . . . . Device 9 | . 6 . 6 9 15 8 13 7 16 20 15 11 10 10 16 11 Storage 7 | . 14 11 9 9 7 7 7 7 6 6 5 5 5 5 4 3 Processor 6 | . . 11 9 3 6 7 7 7 6 6 5 5 5 5 4 4 Hackware 8 | . . 2 3 5 7 8 14 16 6 6 9 7 8 21 10 13 Protection 6 | . 7 7 7 9 7 9 1 2 6 6 6 5 4 4 5 4 Energy Gun 4 | . . 12 7 13 . . . 5 . . . . . . . . Energy Cannon 6 | . 12 1 . 1 7 9 13 8 13 12 9 9 10 9 4 5 Ballistic Gun 3 | . 14 6 9 1 7 4 . . . . . . . . . . Peak Build Rating 170 | 7 9 25 33 53 53 65 68 69 72 73 92 109 110 115 145 170 Average Rating 64 | 5 8 18 26 40 51 51 64 63 71 72 83 92 104 113 133 148 On Entrance 60 | . 7 9 24 31 48 52 61 67 63 72 73 88 104 99 115 121 Naked Turns . | . . . . . . . . . . . . . . . . . Heaviest Build 206 | 15 38 44 56 59 60 75 131 142 144 144 172 177 179 142 173 206 Greatest Support 210 | 40 40 69 89 110 100 100 32 32 28 28 94 140 140 210 210 175 Greatest Overweight (x) 9 | . . . . . . 4 4 7 5 5 9 9 1 . 1 1 Average Overweight (x) 1 | . . . . . . . 2 3 5 4 2 3 . . . . Largest Inventory Capacity 25 | 8 15 15 15 15 15 15 25 25 25 25 25 25 25 25 25 25 Average Capacity 19 | 7 10 15 15 15 15 15 23 25 25 25 25 25 25 25 25 23 Most Carried 25 | 6 15 15 15 15 14 15 25 25 24 25 25 25 25 24 25 25 Average Carried 18 | 2 9 14 14 14 13 14 22 24 23 24 22 24 24 23 23 20 Final Capacity 25 | 8 15 15 15 15 15 15 25 25 25 25 25 25 25 25 25 5 Final Carried 25 | 6 15 15 15 15 13 15 25 25 23 24 24 25 24 24 21 4 Class Distribution -------------------- 44% | Scavenger-Mutant 34% | Mutant 15% | Hacker-Mutant 6% | Bothacker-Mutant Dominant Class ---------------- Mutant | -10/Materials Mutant | -9/Materials Scavenger-Mutant | -8/Materials Scavenger-Mutant | -8/Garrison Scavenger-Mutant | -7/Factory Scavenger-Mutant | -7/Garrison Hacker-Mutant | -7/Factory Bothacker-Mutant | -7/Garrison Bothacker-Mutant | -6/Factory Mutant | -6/DSF Mutant | -5/Factory Scavenger-Mutant | -5/Waste Scavenger-Mutant | -5/Factory Hacker-Mutant | -4/Factory Scavenger-Mutant | -3/Research Hacker-Mutant | -2/Research Resources | -11 -10 -9 -8 -8 -7 -7 -7 -7 -6 -6 -5 -5 -5 -4 -3 -2 ----------- Run | Yrd Mat Mat Mat Gar Fac Gar Fac Gar Fac DSF Fac Was Fac Fac Res Res Matter Collected 7650 | 282 309 876 1159 386 82 542 265 490 . 232 534 426 171 251 970 675 Remotely . | . . . . . . . . . . . . . . . . . Salvage Created 17819 | 98 524 2099 2459 705 206 1320 352 522 . 226 1322 1693 272 111 4086 1824 Parts 830 | 10 27 125 133 38 10 61 26 28 . 11 52 28 8 5 191 77 Haulers Intercepted 21 | . 2 6 5 . . . 1 . . . 1 . 2 . 3 1 Recyclers Shooed 11 | . . 2 1 . . . 1 . . . 3 . 1 . 2 1 Parts Field Recycled . | . . . . . . . . . . . . . . . . . Retrieved Matter . | . . . . . . . . . . . . . . . . . Parts Self-Destructed . | . . . . . . . . . . . . . . . . . Prevented . | . . . . . . . . . . . . . . . . . Kills | -11 -10 -9 -8 -8 -7 -7 -7 -7 -6 -6 -5 -5 -5 -4 -3 -2 ------- Run | Yrd Mat Mat Mat Gar Fac Gar Fac Gar Fac DSF Fac Was Fac Fac Res Res Combat Hostiles Destroyed 269 | . 11 34 37 24 2 30 6 16 . 8 12 6 1 2 58 22 Melee 1 | . . . . . . . . . . . . . . . 1 . Guns 93 | . 5 26 35 20 . 6 . . . . . . . . . 1 Cannons 105 | . 6 6 . . 1 15 6 10 . 5 9 6 1 2 24 14 AOE 40 | . . . 2 4 . 7 . 6 . 3 . . . . 17 1 Classes Destroyed 20 | 2 5 3 6 . . 2 . . . . . 1 . . 1 . Worker 11 | . . 2 5 . . . . . . . . . . . 3 1 Builder 13 | . . . 5 . . . 1 . . . 3 . . . 3 1 Tunneler 6 | 2 1 . . . . . . . . . 1 . . . 2 . Hauler 21 | . 2 6 5 . . . 1 . . . 1 . 2 . 3 1 Recycler 14 | 1 . 4 3 . 1 . . . . . 3 . . . 2 . Mechanic 3 | . . . 1 . . . . . . . . . . . 2 . Operator 7 | . 2 2 3 . . . . . . . . . . . . . Watcher 11 | . 2 3 3 . 1 . . . . . 1 . . . . 1 Swarmer 57 | . 5 10 3 7 . 4 2 1 . 3 1 . . . 21 . Cutter 6 | . . . . . . 3 . 3 . . . . . . . . Saboteur 1 | . . . . . . . . . . . . . . . 1 . Grunt 102 | . 6 13 20 12 1 9 2 9 . 4 1 . . . 20 5 Brawler 8 | . . 2 2 . . 2 . . . . . . . . 1 1 Duelist 4 | . . . 1 . . 1 . . . . . . . . 2 . Sentry 39 | . . 9 7 1 1 7 1 2 . . 3 . 1 1 5 1 Specialist 5 | . . . 2 2 . 1 . . . . . . . . . . Hunter 11 | . . . 1 2 . 1 1 . . . 1 . . 1 . 4 Programmer 27 | . . . . . . 2 . 1 . . 5 . . . 8 11 Heavy 3 | . . . 1 . . . . . . 1 1 . . . . . Compactor 6 | . . . . . . . . . . . . 6 . . . . Best Kill Streak 17 | 2 3 10 17 4 2 6 3 6 . 3 4 2 1 1 14 10 Combat Bots Only 9 | . 3 8 9 4 1 6 2 6 . 3 2 2 1 1 8 5 Max Kills in Single Turn 4 | 1 1 2 4 4 1 3 1 2 . 1 2 1 1 1 3 1 Gunslinging 1 | . . 1 . . . . . . . . . . . . . . Exploded 4 | . . . 1 4 . 3 . 2 . 1 . . . . 3 1 Melee 1 | . . . . . . . . . . . . . . . 1 . Uniques/NPCs Destroyed . | . . . . . . . . . . . . . . . . . Combat | -11 -10 -9 -8 -8 -7 -7 -7 -7 -6 -6 -5 -5 -5 -4 -3 -2 -------- Run | Yrd Mat Mat Mat Gar Fac Gar Fac Gar Fac DSF Fac Was Fac Fac Res Res Hostile Shots Fired 2064 | . 33 119 206 82 32 263 93 128 . 50 161 . 21 48 277 551 Missed 671 | . 4 38 59 22 15 94 37 49 . 14 43 . 7 20 81 188 Damage Taken 26104 | . 300 1006 2418 1008 155 1745 771 966 . 954 2804 . 385 443 4714 8435 Core 2772 | . 8 115 196 61 25 165 66 65 . 19 220 . . 87 291 1454 Absorbed by Shields 284 | . . . 112 5 . . . 37 . . . . . . . 130 Reduced by Siege Mode 202 | . . . . . . . . . . . . . . . 202 . Redirected to Shielding 138 | . . . . . . . . . . . . . . . 28 110 Ignored by Resistances 464 | . . . . . . . . . . . . . 55 . . 409 Regen/Repaired (Parts) 1037 | . . . 417 . 130 . 55 . . . . 96 . . . 339 Core Remaining (%) 79 | 100 96 71 . 53 . . . 54 . 97 . . 78 92 77 . Volleys Fired 1107 | 5 42 109 151 53 13 93 28 66 . 31 105 60 13 12 206 120 Largest 2 | 2 2 2 2 2 2 2 2 2 . 2 2 2 2 2 2 2 Hottest 195 | 70 100 100 150 150 120 175 175 170 . 170 170 120 180 180 180 195 Shots Fired 1778 | 10 82 215 297 101 26 162 52 103 . 56 162 114 25 24 211 138 Gun 718 | 10 41 188 292 99 13 43 . 27 . . . . . . . 5 Cannon 960 | . 39 27 . . 13 111 50 54 . 50 144 107 25 24 194 122 Launcher 46 | . . . 5 2 . 4 . 7 . 6 . . . . 16 6 Special 54 | . 2 . . . . 4 2 15 . . 18 7 . . 1 5 Kinetic 381 | 5 40 101 179 . 13 43 . . . . . . . . . . Thermal 1024 | 5 42 29 42 99 13 111 50 81 . 50 144 107 25 24 117 85 Explosive 41 | . . . 5 2 . 4 . 7 . 6 . . . . 11 6 Electromagnetic 280 | . . 85 71 . . . . . . . . . . . 82 42 Robot Hit Streak 47 | 4 15 15 22 47 12 12 5 14 . 12 18 11 7 4 25 7 Robot Miss Streak 8 | 2 3 6 7 8 3 3 4 2 . 5 4 2 3 3 4 3 Penetration Max . | . . . . . . . . . . . . . . . . . Secondary Targets 13 | . . 2 8 3 . . . . . . . . . . . . Max Gunslinging Chain 1 | . . 1 1 1 . . . . . . . . . . . . Capacitor 274 | . . . . . . . . . . . 27 . . . 180 67 Shots Hit Robots 1196 | 6 57 137 235 90 16 90 23 59 . 37 107 86 15 13 150 75 Core Hits 680 | 4 27 69 141 137 5 42 11 26 . 16 27 18 6 4 109 38 Critical Kills 12 | . . 1 . . 1 2 . . . . 4 . . . . 4 Critical Parts Destroyed 1 | . . . 1 . . . . . . . . . . . . . Critical Strikes 19 | . . 2 4 1 1 2 . . . . 4 . . . 1 4 Burn 1 | . . 1 . . . . . . . . . . . . . . Meltdown 12 | . . 1 . . 1 2 . . . . 4 . . . . 4 Destroy 1 | . . . 1 . . . . . . . . . . . . . Corrupt 3 | . . . 3 . . . . . . . . . . . . . Sever 1 | . . . . 1 . . . . . . . . . . . . Impale 1 | . . . . . . . . . . . . . . . 1 . Melee Attacks 39 | . . 1 4 24 . . . . . . 2 . . . 8 . Impact 1 | . . 1 . . . . . . . . . . . . . . Slashing 16 | . . . 4 12 . . . . . . . . . . . . Piercing 22 | . . . . 12 . . . . . . 2 . . . 8 . Sneak Attacks 6 | . . . 2 . . . . . . . 1 . . . 3 . Combat Hostiles . | . . . . . . . . . . . . . . . . . Follow-up Attacks . | . . . . . . . . . . . . . . . . . Damage Inflicted 38727 | 78 881 2270 4632 2350 519 3195 734 1945 . 1837 3192 2814 516 571 9029 4164 Guns 9289 | 78 354 1913 3819 2011 172 560 . 288 . . . . . . . 94 Cannons 21982 | . 522 324 . . 347 2108 681 886 . 974 3041 2814 516 571 6104 3094 Explosions 6667 | . . . 658 277 . 527 . 771 . 863 . . . . 2596 975 Melee 562 | . . . 128 62 . . . . . . 100 . . . 272 . Ramming 227 | . 5 33 27 . . . 53 . . . 51 . . . 57 1 Kinetic 4131 | 40 354 886 2119 . 172 560 . . . . . . . . . . Thermal 22137 | 38 522 338 761 2011 347 2108 681 1174 . 974 3041 2814 516 571 3938 2303 Explosive 5504 | . . . 620 277 . 527 . 771 . 863 . . . . 1471 975 Electromagnetic 6166 | . . 1013 977 . . . . . . . . . . . 3291 885 Impact . | . . . . . . . . . . . . . . . . . Slashing 190 | . . . 128 62 . . . . . . . . . . . . Piercing 372 | . . . . . . . . . . . 100 . . . 272 . Highest Corruption 44 | . . 2 . 1 . 3 3 3 . . 12 12 16 . 22 44 Average Corruption 7 | . . 2 . 1 . 2 3 3 . . 6 12 13 . 10 22 Corruption Purged . | . . . . . . . . . . . . . . . . . Corruption Blocked . | . . . . . . . . . . . . . . . . . Effects 318 | . . 10 . 11 . 13 34 27 . . 31 55 43 . 36 58 Message Errors 71 | . . 1 . 2 . 2 9 5 . . 6 12 11 . 13 10 Matter Fused 66 | . . 2 . 2 . 1 3 7 . . 7 17 12 . 6 9 Heat Flow Errors 33 | . . 2 . 1 . 3 4 2 . . 3 4 5 . 6 3 Energy Discharges 42 | . . 1 . 3 . 2 6 5 . . 4 6 5 . 3 7 Parts Rejected 9 | . . . . . . . 1 . . . 1 4 . . 1 2 Parts Fused 2 | . . . . . . . 1 1 . . . . . . . . Data Loss (minor) 35 | . . . . 2 . 1 6 3 . . 7 3 4 . 1 8 Data Loss (major) 21 | . . 3 . . . 1 3 2 . . 2 4 2 . 2 2 Misfires 10 | . . 1 . . . 2 . 1 . . . 2 1 . 3 . Alerts 6 | . . . . 1 . 1 . . . . . . 1 . . 3 Misdirections 11 | . . . . . . . . . . . . 2 . . . 9 Weapon Failures 12 | . . . . . . . 1 1 . . 1 1 2 . 1 5 Overload Shots 1 | . . . . . . . . . . . . . . . . 1 Overflow Damage 855 | . . . 69 . . 28 . 44 . 86 103 . 8 9 386 122 Projectiles 601 | . . . . . . 22 . 11 . 32 103 . 8 9 325 91 Explosions 220 | . . . 35 . . 6 . 33 . 54 . . . . 61 31 Melee 34 | . . . 34 . . . . . . . . . . . . . Knockbacks 3 | . . . . . . . 2 . . . 1 . . . . . Impact 3 | . . . . . . . 2 . . . 1 . . . . . Kinetic . | . . . . . . . . . . . . . . . . . Secondary . | . . . . . . . . . . . . . . . . . Self-Inflicted Damage 417 | . . 29 . . . 22 . 2 . . 30 . . . 334 . Shots 21 | . . 1 . . . 1 . 1 . . 1 . . . 17 . Rammed 18 | . 1 3 2 . . . 3 . . . 2 . . . 4 3 Targets Rammed 20 | . 1 3 3 . . . 3 . . . 3 . . . 4 3 Kicked . | . . . . . . . . . . . . . . . . . Crushed 2 | . . . 1 . . . . . . . 1 . . . . . Highest Temperature 415 | 27 207 219 194 144 46 236 244 361 . . 415 232 349 2 268 379 Average Temperature 74 | 12 44 50 63 34 15 51 68 69 . . 121 94 137 2 70 128 Received Heat Transfer 4962 | . 132 402 864 303 78 288 102 320 . 108 225 . 39 45 726 1330 Effects 10 | . . . . . . . . 1 . . 5 . 1 . 2 1 Energy Bleed 2 | . . . . . . . . . . . 1 . . . . 1 Interference 7 | . . . . . . . . . . . 4 . 1 . 2 . Damage (minor) 1 | . . . . . . . . 1 . . . . . . . . Siege Activations 9 | . . . . . . . . . . . . . . . 9 . Total Turns 121 | . . . . . . . . . . . . . . . 121 . Longest Duration 40 | . . . . . . . . . . . . . . . 40 . Martial Activations . | . . . . . . . . . . . . . . . . . Shielding Activations . | . . . . . . . . . . . . . . . . . Robots Disrupted 1 | . . . . . . . . . . . . . . . . 1 Combat Hostiles 1 | . . . . . . . . . . . . . . . . 1 Robots Corrupted 19 | . . 1 . . . . . . . . . . . . 15 3 Combat Hostiles 19 | . . 1 . . . . . . . . . . . . 15 3 Parts Fried 48 | . . 10 7 . . . . . . . . . . . 23 8 Impact Corruptions . | . . . . . . . . . . . . . . . . . Robots Melted 13 | . . 1 . . 1 2 . . . . 4 . . . 1 4 Combat Hostiles 11 | . . 1 . . 1 2 . . . . 3 . . . 1 3 Parts Melted 42 | . 2 . . . 1 1 . 5 . . 14 . . . 3 16 Heat Transferred 22428 | 111 1110 777 660 1369 370 2232 777 1515 . 1184 3478 3915 485 . 2428 2017 Parts Sabotaged 2 | . . . . . . . . . . . . . . . 2 . Parts Stolen . | . . . . . . . . . . . . . . . . . Parts Stripped . | . . . . . . . . . . . . . . . . . Power Chain Reactions 5 | . . 1 1 . . . . . . . . . . . 3 . Alert | -11 -10 -9 -8 -8 -7 -7 -7 -7 -6 -6 -5 -5 -5 -4 -3 -2 ------- Run | Yrd Mat Mat Mat Gar Fac Gar Fac Gar Fac DSF Fac Was Fac Fac Res Res Maximum Alert Level 4 | . . 2 2 4 3 4 3 2 1 2 2 . 4 2 4 3 Low Security (%) 25 | 100 100 14 8 . . . 68 26 . . . 100 18 . 27 . Level 1 36 | . . 71 78 8 . . 29 26 100 80 92 . 16 26 8 54 Level 2 18 | . . 13 13 32 . 15 . 46 . 19 6 . 19 73 24 38 Level 3 10 | . . . . 28 100 34 2 . . . . . 39 . 21 6 Level 4 8 | . . . . 30 . 49 . . . . . . 6 . 17 . Level 5 . | . . . . . . . . . . . . . . . . . High Security . | . . . . . . . . . . . . . . . . . Max Security . | . . . . . . . . . . . . . . . . . Sterilizations 1 | . . . . . . . . . . 1 . . . . . . Peak Influence 1516 | 10 129 461 572 1487 798 1511 793 664 348 455 411 130 1186 527 1516 846 Initial 846 | . . 20 190 212 780 532 793 96 348 246 238 130 . 527 146 846 Average 431 | 2 47 271 309 860 773 1019 191 359 348 334 326 13 652 435 626 385 Influence Increases 12079 | 15 352 1093 1197 1345 101 1059 398 698 4 249 718 28 1838 62 2020 902 Destroy 0b10 Robot/C 6220 | . 220 680 740 660 60 600 220 380 . 180 300 . 540 40 1160 440 Destroy 0b10 Robot/NC 480 | 15 35 85 125 10 10 . 10 . . . 45 . 50 . 75 20 Destroy Leader 1194 | . 58 178 216 40 22 30 72 . . 20 94 . 134 10 206 114 Allied During Kill 715 | . . . . 80 3 1 38 8 . 2 6 . 573 . . 4 Successful Hack 171 | . 5 23 11 12 2 18 22 12 4 . 18 . 4 . 7 33 Disable Machine 465 | . 15 60 30 . . 15 15 . . . 120 . 165 . 30 15 Anti-Garrison Action 1050 | . . . . 500 . 300 . 250 . . . . . . . . Destroy Structure 1184 | . 4 7 30 43 4 50 21 48 . 17 120 28 372 12 272 156 Partial Spotted 15 | . . . . . . 15 . . . . . . . . . . Lose Combat Pursuer 585 | . 15 60 45 . . 30 . . . 30 15 . . . 270 120 Influence Decreases 7302 | 15 302 662 1060 70 120 80 1053 130 . 40 582 158 762 310 662 1296 Time Decay 4582 | 15 302 642 680 . 100 . 583 . . . 522 158 372 120 542 546 Lost Part 640 | . . 20 80 10 . 20 20 30 . 20 40 . 10 . 120 270 Lost Ally 580 | . . . . 60 20 60 . 100 . 20 20 . 230 40 . 30 Purge Threat 1500 | . . . 300 . . . 450 . . . . . 150 150 . 450 Squads Dispatched 48 | . 2 2 8 . 1 . 5 . . . 4 . 5 1 9 11 Investigation 10 | . . 1 1 . 1 . 2 . . . 1 . 1 . . 3 Extermination 13 | . . . . . . . 2 . . . 3 . 2 . 3 3 Reinforcement 17 | . 2 1 6 . . . 1 . . . . . 2 1 2 2 Assault 7 | . . . . . . . . . . . . . . . 4 3 Garrison 1 | . . . 1 . . . . . . . . . . . . . Intercept . | . . . . . . . . . . . . . . . . . Searches Triggered . | . . . . . . . . . . . . . . . . . Construction Impeded 3 | . . . 2 . . . 1 . . . . . . . . . Haulers Reinforced 2 | . . . . . . . . . . . . . 1 . 1 . Active Scanning Responses . | . . . . . . . . . . . . . . . . . Cargo Convoy Interrupts 1 | . . . . . . . . . . . . . . . . 1 Stealth | -11 -10 -9 -8 -8 -7 -7 -7 -7 -6 -6 -5 -5 -5 -4 -3 -2 --------- Run | Yrd Mat Mat Mat Gar Fac Gar Fac Gar Fac DSF Fac Was Fac Fac Res Res Distress Signals 18 | . 1 3 7 1 1 . . . . . 1 . 1 . 3 . Communications Jammed 137 | . . . . . . . . . . 8 76 . . . . 53 Distress Signals 123 | . . . . . . . . . . . 70 . . . . 53 Times Spotted 466 | . 21 47 61 32 4 33 13 26 . 10 36 3 22 2 82 74 Peak Tracking Total 32 | . 4 9 5 6 2 6 3 5 . 4 5 2 4 1 8 32 Tactical Retreats 26 | . 1 3 3 . . 2 . . . 2 1 . . . 10 4 Traps | -11 -10 -9 -8 -8 -7 -7 -7 -7 -6 -6 -5 -5 -5 -4 -3 -2 ------- Run | Yrd Mat Mat Mat Gar Fac Gar Fac Gar Fac DSF Fac Was Fac Fac Res Res Traps Triggered 23 | . . 1 1 4 . 3 2 5 . 1 3 . . 2 1 . Indirectly . | . . . . . . . . . . . . . . . . . Trap Hack Attempts . | . . . . . . . . . . . . . . . . . Triggered . | . . . . . . . . . . . . . . . . . Disarmed . | . . . . . . . . . . . . . . . . . Reprogrammed . | . . . . . . . . . . . . . . . . . Reused . | . . . . . . . . . . . . . . . . . Traps Extracted . | . . . . . . . . . . . . . . . . . Installed . | . . . . . . . . . . . . . . . . . Triggered . | . . . . . . . . . . . . . . . . . Machines | -11 -10 -9 -8 -8 -7 -7 -7 -7 -6 -6 -5 -5 -5 -4 -3 -2 ---------- Run | Yrd Mat Mat Mat Gar Fac Gar Fac Gar Fac DSF Fac Was Fac Fac Res Res Machines Disabled 41 | . 1 4 2 4 . 4 1 3 . . 8 . 11 . 2 1 Max in Single Turn 2 | . 1 1 1 1 . 1 1 1 . . 2 . 1 . 1 1 Garrison Relay 10 | . . . . 4 . 3 . 3 . . . . . . . . Machines Repaired . | . . . . . . . . . . . . . . . . . Machines Dismantled . | . . . . . . . . . . . . . . . . . Machines Sabotaged . | . . . . . . . . . . . . . . . . . Overloaded Fab Kills . | . . . . . . . . . . . . . . . . . Hacking | -11 -10 -9 -8 -8 -7 -7 -7 -7 -6 -6 -5 -5 -5 -4 -3 -2 --------- Run | Yrd Mat Mat Mat Gar Fac Gar Fac Gar Fac DSF Fac Was Fac Fac Res Res Machines Accessed 60 | . 5 10 12 2 2 3 8 3 1 . 2 . 2 1 2 7 Terminals 47 | . 4 9 8 2 . 3 5 3 1 . 1 . 2 1 2 6 Fabricators 2 | . . . . . . . 1 . . . 1 . . . . . Repair Stations 5 | . . . 2 . 1 . 1 . . . . . . . . 1 Recycling Units 1 | . 1 . . . . . . . . . . . . . . . Scanalyzers 2 | . . 1 1 . . . . . . . . . . . . . Garrison Access 3 | . . . 1 . 1 . 1 . . . . . . . . . Total Hacks 162 | . 15 23 40 5 4 6 20 7 2 . 9 . 5 2 6 18 Successful 84 | . 3 12 28 1 3 3 11 3 1 . 7 . 2 1 1 8 Failed 78 | . 12 11 12 4 1 3 9 4 1 . 2 . 3 1 5 10 Catastrophic 14 | . 2 4 2 1 . . 1 . . . 1 . . 1 . 2 Database Lockouts . | . . . . . . . . . . . . . . . . . Manual 78 | . 13 15 20 . . . 9 . . . . . 5 2 6 8 Terminals 124 | . 14 21 27 5 . 6 14 7 2 . 2 . 5 2 6 13 Fabricators 10 | . . . . . . . 3 . . . 7 . . . . . Repair Stations 19 | . . . 9 . 3 . 2 . . . . . . . . 5 Recycling Units 1 | . 1 . . . . . . . . . . . . . . . Scanalyzers 5 | . . 2 3 . . . . . . . . . . . . . Garrison Access 3 | . . . 1 . 1 . 1 . . . . . . . . . Terminal Hacks 38 | . 2 4 9 1 . 3 6 3 1 . 1 . 2 1 1 4 Part Schematic 1 | . . . . . . . 1 . . . . . . . . . Robot Analysis 3 | . 1 . 2 . . . . . . . . . . . . . Prototype ID Bank 3 | . 1 1 1 . . . . . . . . . . . . . Open Door 1 | . . . . . . 1 . . . . . . . . . . Open DSF 2 | . . . . . . . . . 1 . 1 . . . . . Level Access Points 2 | . . . . . . . . . . . . . 1 . 1 . Branch Access Points 1 | . . . . . . . 1 . . . . . . . . . Emergency Access Points 3 | . . . . 1 . 1 . 1 . . . . . . . . Terminal Index 3 | . . 1 . . . . 1 . . . . . . . . 1 Alert Level 2 | . . . 2 . . . . . . . . . . . . . Unreport Threat 10 | . . . 2 . . . 3 . . . . . 1 1 . 3 Hauler Manifests 2 | . . 1 1 . . . . . . . . . . . . . Zone Layout 2 | . . 1 1 . . . . . . . . . . . . . Garrison Registry 1 | . . . . . . . . 1 . . . . . . . . Patrol Navigation 2 | . . . . . . 1 . 1 . . . . . . . . Fabricator Hacks 7 | . . . . . . . 1 . . . 6 . . . . . Load Schematic 4 | . . . . . . . 1 . . . 3 . . . . . Build 3 | . . . . . . . . . . . 3 . . . . . Repair Station Hacks 14 | . . . 8 . 2 . 2 . . . . . . . . 2 Scan Component 7 | . . . 4 . 1 . 1 . . . . . . . . 1 Repair 7 | . . . 4 . 1 . 1 . . . . . . . . 1 Recycling Unit Hacks 1 | . 1 . . . . . . . . . . . . . . . Retrieve Components 1 | . 1 . . . . . . . . . . . . . . . Scanalyzer 5 | . . 2 3 . . . . . . . . . . . . . Insert Component 2 | . . 1 1 . . . . . . . . . . . . . Analyze 3 | . . 1 2 . . . . . . . . . . . . . Garrison Access Hacks 3 | . . . 1 . 1 . 1 . . . . . . . . . Unlock Access 3 | . . . 1 . 1 . 1 . . . . . . . . . Unauthorized Hacks 16 | . . 6 7 . . . 1 . . . . . . . . 2 Terminals 15 | . . 6 7 . . . 1 . . . . . . . . 1 Assimilate 1 | . . . . . . . . . . . . . . . . 1 Botnet 4 | . . 1 2 . . . 1 . . . . . . . . . Operators 2 | . . 2 . . . . . . . . . . . . . . Skim 8 | . . 3 5 . . . . . . . . . . . . . Fabricators . | . . . . . . . . . . . . . . . . . Repair Stations 1 | . . . . . . . . . . . . . . . . 1 Patch 1 | . . . . . . . . . . . . . . . . 1 Recycling Units . | . . . . . . . . . . . . . . . . . Scanalyzers . | . . . . . . . . . . . . . . . . . Garrison Access . | . . . . . . . . . . . . . . . . . Data Cores Recovered 3 | . . 1 2 . . . . . . . . . . . . . Used 1 | . . . 1 . . . . . . . . . . . . . Hacking Detections 55 | . 4 10 11 2 2 2 8 2 1 . 1 . 2 1 2 7 Full Trace Events 9 | . . . . 1 1 1 2 . . . 1 . 1 . . 2 Feedback Events 2 | . . . . 1 . . 1 . . . . . . . . . Corruption 1 | . . . . 1 . . . . . . . . . . . . Hackware Fried 1 | . . . . . . . 1 . . . . . . . . . Feedback Blocked . | . . . . . . . . . . . . . . . . . Robot Schematics Acquired . | . . . . . . . . . . . . . . . . . Robots Built . | . . . . . . . . . . . . . . . . . Authchips . | . . . . . . . . . . . . . . . . . Time . | . . . . . . . . . . . . . . . . . Total Robot Build Rating . | . . . . . . . . . . . . . . . . . Part Schematics Acquired 3 | . . 1 1 . . . 1 . . . . . . . . . Parts Built 4 | . . . . . . . . . . . 4 . . . . . Authchips 2 | . . . . . . . . . . . 2 . . . . . Time 163 | . . . . . . . . . . . 163 . . . . . Total Part Build Rating 28 | . . . . . . . . . . . 28 . . . . . Parts Repaired 7 | . . . 4 . 1 . 1 . . . . . . . . 1 Time 266 | . . . 166 . 38 . 28 . . . . . . . . 34 Parts Recycled . | . . . . . . . . . . . . . . . . . Recycled Matter . | . . . . . . . . . . . . . . . . . Retrieved Matter . | . . . . . . . . . . . . . . . . . Retrieved Components 1 | . 1 . . . . . . . . . . . . . . . Parts Scanalyzed 2 | . . 1 1 . . . . . . . . . . . . . Part Schematics Acquired 2 | . . 1 1 . . . . . . . . . . . . . Parts Damaged . | . . . . . . . . . . . . . . . . . Bothacking | -11 -10 -9 -8 -8 -7 -7 -7 -7 -6 -6 -5 -5 -5 -4 -3 -2 ------------ Run | Yrd Mat Mat Mat Gar Fac Gar Fac Gar Fac DSF Fac Was Fac Fac Res Res Used RIF Installer 3 | . . . . 1 . 1 . 1 . . . . . . . . Command Fork 1 | . . . . . . . . 1 . . . . . . . . Signal Jammer 1 | . . . . . . 1 . . . . . . . . . . Robots Hacked 26 | . . . . . . 2 2 7 . . 8 5 . . . 2 Non-combat 4 | . . . . . . . . . . . 2 . . . . 2 Combat 22 | . . . . . . 2 2 7 . . 6 5 . . . . Robot Hacks Applied 32 | . . . . . . 3 2 8 . . 11 5 . . . 3 start_evac 1 | . . . . . . . . . . . . . . . . 1 ignore_repairs 1 | . . . . . . . . . . . 1 . . . . . find_fabricator 1 | . . . . . . . . . . . 1 . . . . . find_dsf 1 | . . . . . . . . . . . 1 . . . . . drop_inventory 1 | . . . . . . . . . . . . . . . . 1 locate_stockpiles 1 | . . . . . . . . . . . . . . . . 1 ignore_targets 5 | . . . . . . . . . . . . 5 . . . . find_shortcuts 2 | . . . . . . . . 1 . . 1 . . . . . spike_heat 1 | . . . . . . . . . . . 1 . . . . . amplify_resonance 7 | . . . . . . 2 . 2 . . 3 . . . . . overwrite_iff 5 | . . . . . . 1 . 4 . . . . . . . . streamctrl_high 2 | . . . . . . . . . . . 2 . . . . . formatsys_high 4 | . . . . . . . 2 1 . . 1 . . . . . Relay Couplers Released 43 | . . . . 17 . 10 . 12 . . . . . . 4 . Machine Destruction 39 | . . . . 17 . 10 . 12 . . . . . . . . Programmers 4 | . . . . . . . . . . . . . . . 4 . Attached 13 | . . . . . . 1 1 6 . . 2 1 . . 1 1 Fabnet Peak Effective % . | . . . . . . . . . . . . . . . . . Robots Rewired 9 | . . . . 6 . 2 . . . . . . . . . 1 Allies Hacked . | . . . . . . . . . . . . . . . . . Hacks Repelled . | . . . . . . . . . . . . . . . . . Allies | -11 -10 -9 -8 -8 -7 -7 -7 -7 -6 -6 -5 -5 -5 -4 -3 -2 -------- Run | Yrd Mat Mat Mat Gar Fac Gar Fac Gar Fac DSF Fac Was Fac Fac Res Res Total Allies 41 | . . . . 6 . 3 2 5 . . 4 19 . . . 2 Largest Group 19 | . . . . 6 1 2 2 2 1 1 3 19 19 2 . 2 Highest-Rated Group 684 | . . . . 132 21 56 64 32 31 31 88 684 684 92 . 84 Highest-Rated Ally 58 | . . . . 24 21 31 32 32 31 31 40 50 50 46 . 58 Total Orders 8 | . . . . 7 . . . . . . . . . . . 1 STAY 4 | . . . . 4 . . . . . . . . . . . . ROAM 1 | . . . . . . . . . . . . . . . . 1 FOLLOW 3 | . . . . 3 . . . . . . . . . . . . Ally Attacks 419 | . . . . 74 6 4 23 19 . 4 10 . 273 3 . 3 Total Damage 10006 | . . . . 1712 131 40 426 333 . 151 136 . 6863 79 . 135 Kills 61 | . . . . 12 1 . 5 3 . 1 3 . 36 . . . Allies Corrupted 1 | . . . . . . . . . . . . . 1 . . . Allies Melted . | . . . . . . . . . . . . . . . . . Intel | -11 -10 -9 -8 -8 -7 -7 -7 -7 -6 -6 -5 -5 -5 -4 -3 -2 ------- Run | Yrd Mat Mat Mat Gar Fac Gar Fac Gar Fac DSF Fac Was Fac Fac Res Res Active Infowar (turns) 7967 | 14 570 74 881 . 211 310 1540 85 9 270 1391 730 264 . 1106 512 Sensors 5730 | . . . 727 . 211 310 1540 41 9 270 168 730 262 . 1104 358 Seismic 812 | 14 570 74 154 . . . . . . . . . . . . . Jamming 2192 | . . . . . . . . 44 8 246 1391 . 61 . . 442 ECM 11 | . . . . . . . . . . . . . . . 2 9 Robot Analysis Total 3 | . 1 . 2 . . . . . . . . . . . . . Derelict Logs Recovered . | . . . . . . . . . . . . . . . . . Drone Launches . | . . . . . . . . . . . . . . . . . Drone Recoveries . | . . . . . . . . . . . . . . . . . Exploration | -11 -10 -9 -8 -8 -7 -7 -7 -7 -6 -6 -5 -5 -5 -4 -3 -2 ------------- Run | Yrd Mat Mat Mat Gar Fac Gar Fac Gar Fac DSF Fac Was Fac Fac Res Res Turns Passed 21250 | 89 1175 2401 2698 2177 211 1723 1816 1533 9 270 1455 1315 1026 245 1544 1563 Spaces Moved 9829 | 39 625 1195 1152 1090 100 870 1138 748 5 91 482 421 406 120 621 726 Core 214 | 5 . . . . . . . . . . . . . . . 209 Treads 7040 | 34 625 1195 1152 1090 100 685 . . . . 297 272 406 120 621 443 Legs 53 | . . . . . . . . . . . . . . . . 53 Wheels 2501 | . . . . . . 185 1138 748 5 91 185 149 . . . . Hover . | . . . . . . . . . . . . . . . . . Flight 21 | . . . . . . . . . . . . . . . . 21 Fastest Speed 40 | 50 160 160 160 160 160 130 110 145 175 160 160 160 160 160 148 40 Average Speed 168 | 145 160 160 160 161 160 155 144 160 175 174 224 250 235 160 158 162 Slowest Speed 397 | 160 160 160 160 162 162 170 170 230 175 175 397 270 240 160 240 230 Overloaded Moves . | . . . . . . . . . . . . . . . . . Propulsion Burnouts . | . . . . . . . . . . . . . . . . . Robots Hopped 2 | . . . . . . . . . . . . . . . . 2 Cave-ins Triggered . | . . . . . . . . . . . . . . . . . Exploration Rate (%) 50 | 4 91 91 86 89 4 78 29 61 . 89 16 90 21 5 24 24 Regions Visited 16 Branch Regions . Pre-discovered Areas . | . . . . . . . . . . . . . . . . . Known Exits Taken 9 | . 1 1 1 . 1 . 1 . 1 . . . 1 1 1 . Unknown Exits Taken 1 | 1 . . . . . . . . . . . . . . . . Scrap Searched . | . . . . . . . . . . . . . . . . . Spaces Dug 91 | . 2 1 2 4 . 12 1 3 . . 46 . . . 12 8 Terrain Destroyed 460 | . 2 4 34 15 3 21 21 19 . 28 79 14 8 6 154 52 Melee 7 | . . 1 2 4 . . . . . . . . . . . . Projectile 162 | . 2 . . . 3 16 21 6 . . 37 14 8 6 23 26 AOE 291 | . . 3 32 11 . 5 . 13 . 28 42 . . . 131 26 Terrain Rammed . | . . . . . . . . . . . . . . . . . Walls Destroyed . | . . . . . . . . . . . . . . . . . Machines Disabled . | . . . . . . . . . . . . . . . . . Actions | -11 -10 -9 -8 -8 -7 -7 -7 -7 -6 -6 -5 -5 -5 -4 -3 -2 --------- Run | Yrd Mat Mat Mat Gar Fac Gar Fac Gar Fac DSF Fac Was Fac Fac Res Res Total 13008 | 57 715 1494 1713 1369 126 1087 1251 987 6 144 729 578 455 142 1122 1033 Wait 902 | . 15 86 266 58 9 37 11 88 . 7 43 35 2 . 177 68 Move 9813 | 38 624 1194 1152 1089 100 869 1138 747 4 90 482 420 405 119 620 722 Hop 2 | . . . . . . . . . . . . . . . . 2 Pick Up 211 | 6 15 18 33 11 1 16 19 11 . 4 20 5 4 4 26 18 Fast Attach 109 | 7 . 13 13 2 . 10 6 5 . 3 6 16 7 1 3 17 Attach 124 | . . 3 13 1 3 6 6 8 2 2 17 3 5 3 21 31 Detach 32 | . . 2 3 . . 1 1 3 . . 5 1 1 . 5 10 Swap 238 | 1 10 23 32 32 . 14 13 15 . 3 23 11 4 3 38 16 Drop 261 | . 8 42 43 17 . 22 18 12 . 4 15 27 14 . 14 25 Fire 1107 | 5 42 109 151 53 13 93 28 66 . 31 105 60 13 12 206 120 Melee 39 | . . 1 4 24 . . . . . . 2 . . . 8 . Ram 4 | . . . . . . . . . . . 2 . . . . 2 Kick . | . . . . . . . . . . . . . . . . . Crush 17 | . 1 3 3 . . . 3 . . . 1 . . . 4 2 Escape Stasis 57 | . . . . 1 . 8 8 32 . . 8 . . . . . Rewire 92 | . . . . 81 . 11 . . . . . . . . . . Trap . | . . . . . . . . . . . . . . . . . Miscellaneous . | . . . . . . . . . . . . . . . . . Route ------- -11/Scrapyard -10/Materials (discovered 3 exits: *Mat x2 / [*Min]) -9/Materials (discovered 3 exits: *Mat x2 / *Min) -8/Materials (discovered 3 exits: *Fac x2 / Gar) -8/Garrison (discovered 2 exits: *Fac x2) -7/Factory (discovered 8 exits: Fac x3 / Sto x2 / Low x2 / Gar) -7/Garrison (discovered 3 exits: *Fac x3) -7/Factory (discovered 5 exits: *Sto x2 / *Low x2 / Gar) -7/Garrison (discovered 3 exits: *Fac x3) -6/Factory -6/DSF -5/Factory -5/Waste -5/Factory (discovered 4 exits: *Fac x4) -4/Factory -3/Research (discovered 3 exits: *Res x3) -2/Research History --------- Turn | Location | Event 4 | -11/Scrapyard | Discovered new exit (range 15) 90 | -11/Scrapyard | Entered Materials 306 | -10/Materials | Build established: Mutant 560 | -10/Materials | Discovered new exit (range 15) 780 | -10/Materials | Discovered new exit (range 14) 896 | -10/Materials | Discovered new exit (range 13) 1265 | -10/Materials | Identified exit to Materials 1265 | -10/Materials | Entered another Materials area 1265 | -9/Materials | Evolved 2 slots: Propulsion x1, Utility x1 1406 | -9/Materials | Destroyed 8 combat bots 1941 | -9/Materials | Discovered new exit (range 12) 2175 | -9/Materials | Discovered new exit (range 3) 2178 | -9/Materials | Identified exit to Materials 2554 | -9/Materials | Identified exit to Mines 3132 | -9/Materials | Discovered exit to Materials (range 16) 3666 | -9/Materials | Entered another Materials area 3666 | -8/Materials | Evolved 2 slots: Propulsion x1, Utility x1 4086 | -8/Materials | Destroyed 9 combat bots 4270 | -8/Materials | Lost 3 parts (2n1u) 4470 | -8/Materials | Repaired Imp. Assault Rifle 4523 | -8/Materials | Repaired Imp. Assault Rifle 4563 | -8/Materials | Build established: Scavenger-Mutant 4645 | -8/Materials | Discovered new exit (range 15) 4759 | -8/Materials | Learned Factory recycling unit intel 4830 | -8/Materials | Learned location of 1 exit from Lower Caves 4890 | -8/Materials | Learned location of 2 exits from Factory 4942 | -8/Materials | Learned location of 3 exits from Factory 5035 | -8/Materials | Learned 2 Lower Caves zone layouts 5099 | -8/Materials | Learned Storage emergency access door positions 5334 | -8/Materials | Build established: Mutant 5588 | -8/Materials | Discovered new exit (range 13) 5879 | -8/Materials | Build established: Scavenger-Mutant 5945 | -8/Materials | Repaired Hrd. Medium Armor Plating 5972 | -8/Materials | Repaired Lgt. Treads 6312 | -8/Materials | Garrison activated, responded to threat 6364 | -8/Materials | Identified exit to Garrison 6364 | -8/Materials | Entered Garrison 6444 | -8/Garrison | Triggered checkpoint 6467 | -8/Garrison | Garrison Relay disabled 6547 | -8/Garrison | Triggered checkpoint 6676 | -8/Garrison | Triggered checkpoint 6795 | -8/Garrison | Discovered new exit (range 10) 6808 | -8/Garrison | Identified exit to Factory 7306 | -8/Garrison | Triggered checkpoint 7403 | -8/Garrison | Spotted B-75 Beast 7425 | -8/Garrison | Allies destroyed B-75 Beast 7598 | -8/Garrison | Rescued a captive Derelict 7600 | -8/Garrison | Rescued a captive Derelict 7719 | -8/Garrison | Garrison Relay disabled 7852 | -8/Garrison | Discovered exit to Factory (range 13) 7907 | -8/Garrison | Garrison Relay disabled 8198 | -8/Garrison | Garrison Relay disabled 8233 | -8/Garrison | Installed Relay Interface Framework 8541 | -8/Garrison | Entered Factory 8541 | -7/Factory | Accompanied by 1 ally 8541 | -7/Factory | Evolved 2 slots: Utility x2 8542 | -7/Factory | Identified exit to Lower Caves 8543 | -7/Factory | Identified exit to Storage 8543 | -7/Factory | Identified exit to Factory 8544 | -7/Factory | Loaded intel: 6 recycling unit locations 8593 | -7/Factory | Repaired Arm. Treads 8752 | -7/Factory | Identified exit to Garrison 8752 | -7/Factory | Entered Garrison 8880 | -7/Garrison | Triggered checkpoint 8927 | -7/Garrison | Garrison Relay disabled 9116 | -7/Garrison | Triggered checkpoint 9178 | -7/Garrison | Discovered new exit (range 14) 9197 | -7/Garrison | Identified exit to Factory 9223 | -7/Garrison | Expanded RIF knowledge: Signal Jamming 9390 | -7/Garrison | Triggered checkpoint 9480 | -7/Garrison | Triggered checkpoint 9504 | -7/Garrison | Garrison Relay disabled 9629 | -7/Garrison | Discovered exit to Factory (range 14) 10140 | -7/Garrison | Found Quantum Capacitor 10306 | -7/Garrison | Triggered checkpoint 10316 | -7/Garrison | Triggered checkpoint 10396 | -7/Garrison | Discovered exit to Factory (range 9) 10462 | -7/Garrison | Triggered checkpoint 10463 | -7/Garrison | Build established: Bothacker-Mutant 10475 | -7/Garrison | Entered Factory 10807 | -7/Factory | Build established: Hacker-Mutant 10871 | -7/Factory | Hacking Suite fried by hacking feedback 11067 | -7/Factory | Repaired Hvy. Phase Cannon 12247 | -7/Factory | Build established: Mutant 12291 | -7/Factory | Identified exit to Garrison 12291 | -7/Factory | Entered Garrison 12291 | -7/Garrison | Accompanied by 1 ally 12457 | -7/Garrison | Triggered checkpoint 12527 | -7/Garrison | Garrison Relay disabled 12617 | -7/Garrison | Triggered checkpoint 12635 | -7/Garrison | Triggered checkpoint 12712 | -7/Garrison | Lost 4 allies 12775 | -7/Garrison | Triggered checkpoint 12822 | -7/Garrison | Garrison Relay disabled 12951 | -7/Garrison | Discovered exit to Factory (range 10) 13091 | -7/Garrison | Triggered checkpoint 13104 | -7/Garrison | Garrison Relay disabled 13153 | -7/Garrison | Expanded RIF knowledge: Command Fork 13178 | -7/Garrison | Build established: Bothacker-Mutant 13218 | -7/Garrison | Discovered exit to Factory (range 14) 13290 | -7/Garrison | Discovered exit to Factory (range 80) 13290 | -7/Garrison | Discovered exit to Factory (range 21) 13290 | -7/Garrison | Discovered exit to Factory (range 76) 13824 | -7/Garrison | Entered Factory 13824 | -6/Factory | Accompanied by 1 ally 13824 | -6/Factory | Evolved 2 slots: Utility x2 13833 | -6/Factory | Identified exit to DSF 13833 | -6/Factory | Entered DSF 13833 | -6/DSF | Accompanied by 1 ally 13880 | -6/DSF | Additional patrols routed to DSF 13992 | -6/DSF | Discovered new exit (range 15) 14065 | -6/DSF | Sterilization system engaged 14085 | -6/DSF | Ambient heat levels rising (+10) 14100 | -6/DSF | Ambient heat levels rising (+10) 14101 | -6/DSF | Identified exit to Factory 14103 | -6/DSF | Entered Factory 14103 | -5/Factory | Evolved 2 slots: Power x1, Utility x1 14203 | -5/Factory | Build established: Mutant 14761 | -5/Factory | Fabricated Lgt. Quantum Reactor? 14893 | -5/Factory | Fabricated Imp. Hacking Suite (x1) 14942 | -5/Factory | Fabricated Imp. Hacking Suite (x1) 15489 | -5/Factory | System corruption reached 10% 15558 | -5/Factory | Sucked down chute 15558 | -5/Factory | Entered Waste 15605 | -5/Waste | Found Prototype Launcher 15605 | -5/Waste | Identified Adv. Micro-nuke Launcher 15613 | -5/Waste | Spotted C-40 Crusher 15657 | -5/Waste | Spotted C-40 Crusher 15672 | -5/Waste | Spotted C-40 Crusher 15718 | -5/Waste | Spotted C-40 Crusher 15753 | -5/Waste | Build established: Scavenger-Mutant 15932 | -5/Waste | Spotted C-40 Crusher 15934 | -5/Waste | Spotted C-40 Crusher 16031 | -5/Waste | Destroyed C-40 Crusher 16096 | -5/Waste | Destroyed C-40 Crusher 16119 | -5/Waste | Discovered new exit (range 16) 16135 | -5/Waste | Found Damper Plating 16191 | -5/Waste | Destroyed C-40 Crusher 16238 | -5/Waste | Destroyed C-40 Crusher 16241 | -5/Waste | Destroyed C-40 Crusher 16247 | -5/Waste | Found Damper Plating 16324 | -5/Waste | Destroyed C-40 Crusher 16358 | -5/Waste | Found Damper Plating 16471 | -5/Waste | Identified exit to Factory 16571 | -5/Waste | Warlord forces began an assault 16873 | -5/Waste | Entered Factory 16873 | -5/Factory | Accompanied by 19 allies 17226 | -5/Factory | Lost 3 allies 17418 | -5/Factory | Spotted B-75 Beast 17429 | -5/Factory | Allies destroyed B-75 Beast 17475 | -5/Factory | Lost 3 allies 17630 | -5/Factory | Found Prototype Processor 17630 | -5/Factory | Identified Exp. Targeting Computer 17727 | -5/Factory | Identified exit to Factory 17899 | -5/Factory | Entered another Factory area 17899 | -4/Factory | Accompanied by 2 allies 17899 | -4/Factory | Evolved 2 slots: Propulsion x2 18013 | -4/Factory | Build established: Hacker-Mutant 18019 | -4/Factory | Discovered new exit (range 14) 18054 | -4/Factory | Identified exit to Research 18144 | -4/Factory | Entered Research 18144 | -3/Research | Evolved 2 slots: Utility x2 18204 | -3/Research | Found Gamma Bomb Array 18410 | -3/Research | Spotted B-86 Titan 18577 | -3/Research | Build established: Scavenger-Mutant 18894 | -3/Research | First assault squad dispatched 18921 | -3/Research | Identified exit to Research 19031 | -3/Research | System corruption reached 10% 19354 | -3/Research | Found Prototype Processor 19354 | -3/Research | Identified Exp. Signal Interpreter 19485 | -3/Research | Build established: Hacker-Mutant 19570 | -3/Research | Lost 3 parts (1n2u) 19636 | -3/Research | Destroyed 8 combat bots 19664 | -3/Research | Lost 3 parts (1p1u1w) 19688 | -3/Research | Entered another Research area 19688 | -2/Research | Evolved 2 slots: Power x1, Utility x1 20338 | -2/Research | System corruption reached 10% 20630 | -2/Research | Found Prototype Hackware 20647 | -2/Research | Build established: Scavenger-Mutant 20688 | -2/Research | First assault squad dispatched 20841 | -2/Research | Repaired Biometal Medium Treads 20966 | -2/Research | System corruption reached 30% 20990 | -2/Research | Spotted B-90 Cyclops 21077 | -2/Research | Identified Exp. Hacking Suite 21138 | -2/Research | Lost 16 parts (3p7n3u3w) 21204 | -2/Research | Core integrity fell below 50% 21244 | -2/Research | Core integrity fell below 20% 21249 | -2/Research | Spotted Executioner 21250 | -2/Research | Cargo convoy interrupted 21250 | -2/Research | Spotted Striker 21250 | -2/Research | Spotted Striker 21251 | -2/Research | Destroyed by X-87 Electro with Compact HERF Cannon Last Messages --------------- 21249_ I-47 Archangel unfolds itself. 21249_ I-47 Archangel distress signal jammed. 21250_ ALERT: Cargo convoy interrupted, initiating access lockdown. 21250_ Penetrated by Slug. 21250_ Slug penetrates Wall. 21250_ I-47 Archangel distress signal jammed. 21250_ P-80 Master resets K-01 Serf, system corruption cleaned. 21250_ C-30 ARC bursts open, deploying its payload. 21250_ Striker unfolds itself. 21250_ P-80 Master unfolds itself. 21250_ H-88 Terminator unfolds itself. 21250_ M-36 Artificer unfolds itself. 21250_ I-47 Archangel distress signal jammed. 21251_ K-01 Serf destroyed. 21251_ H-88 Terminator knocked back. 21251_ A-27 Freighter distress signal jammed. 21251_ I-47 Archangel distress signal jammed. Map ----- +----------------------------------------------------+ | ????????????????????????????????????????????????# | | ????????????????????????????????????????????????# | | ????????????????????????????????????????????????# | | ????????????????????????????????????????????????# | | ????????????????????????????????????????????????# | | ????????????????????????????????????????????????# | | ????????????????????????????????????????????????# | | ????????????????????????????????????????????????# | | ????????????????????????????????????????????????# | | ???????????????????????????????????????????####### | | ???????????????????????????????????????????# | | ???????????????????????????????????????????# | | ???????????????????????????????????????????# | | ???????????????????????????????????????????# | | ???????????????????????????????????????????# ! | | ???????????????????????????????????????????# | | ???????????????????????????????????????????###"""T | | ???????????????????????????????????????????####### | | ???????????????????????????????????????????# | | ???????????????????????????????????????????# | | ???????????????????????????????????????????# | | ???????????????????????????????????????????# | | ?????????????????????????????????########### " | | ?????????????????????????????###?# # " | | ?????????????????############;;### = # " | | ?????????? R ]x *%@ % k kA "" / | | ?????????? m ipp s ######## """ # | | ?????????? k K%E s ??????# R" # | | ???????????ut Kph ??????# """ # " | | ???????????#######i s ?????# #!! " | | ?????????????????# ss ###?????# #! " | | ?????????????????# A ????????#####+##### | | ?????????????????# ????????????# | | ?????????????????#+##### ????????????# | | ???????????????????????# ????????????# " | | ???????????????????????+ ????????????#+##+## " | | ???????????????????????# ??????????????????# " | | ???????????????????????#???????????????????# | | ???????????????????????????????????????????# | | ???????????????????????????????????????????+ | | ???????????????????????????????????????????# | | ???????????????????????????????????????????# | | ???????????????????????????????????????????# | | ???????????????????????????????????????????? ## | | ???????????????????????????????????????????? #? | | ???????????????????????????????????????????? #? | | ???????????????????????????????????????????? ?? | | ?????????????????????????????????????????????????? | | ?????????????????????????????????????????????????? | | ?????????????????????????????????????????????????? | +----------------------------------------------------+ Best States ------------- Heat Dissipation 117 Coolant Potential 240 Energy Generation 65 Energy Capacity 550 Matter Stores 300 Matter Capacity 300 Sight Range 16 Robot Scan Range 15 Terrain Scan Density 10 ECM Strength 1 Jamming Range 16 Additional Mass Support 20 Armor Coverage 1600 Resistance: EM 90 Utility Shielding 66 Evasion (%) 70 Recoil Reduction 6 Offensive Hacking 58 Relay Coupler Types 3 Relay Coupler Value 65 Authchip Count 2 Item Schematics ----------------- Hacking Suite | -9/Materials | Scanalyzed Hrd. Heavy Armor Plating | -8/Materials | Scanalyzed Imp. Hacking Suite | -7/Factory | Hacked Robot Schematics ------------------ None Fabricated ------------ Lgt. Quantum Reactor | x2 | -5/Factory | Preloaded Imp. Hacking Suite | x1 | -5/Factory | Authchip Imp. Hacking Suite | x1 | -5/Factory | Authchip Repaired ---------- Imp. Assault Rifle | 24% | -8/Materials Imp. Assault Rifle | 42% | -8/Materials Hrd. Medium Armor Plating | 40% | -8/Materials Lgt. Treads | 36% | -8/Materials Arm. Treads | 56% | -7/Factory Hvy. Phase Cannon | 63% | -7/Factory Biometal Medium Treads | 10% | -2/Research Alien Tech Used ----------------- None Achievements -------------- None Challenges ------------ None Game ------ Seed SapperSubatomicTearclaws Manual? 0 Play Time 03:31:23 Cumulative 442.8 hours Start 2024.11.08 @ 15:43:46 End 2024.11.08 @ 19:35:49 Sessions 1 Manual Loads 0 Difficulty Rogue Special Mode None Game No. 293 Rogue 288 Adventurer 5 Explorer 0 Win Type - Total 10 Types 4/0/5/0/0/0/1/0/0 Lore% 77 Gallery% 89 Achievement% 75 Wizard Run 0 Options --------- Layout 2 ASCII 0 Keyboard 0 Movement Mouse Keybinds 0 Fullscreen 2 Font 24/Smallcaps Map View 50x44 Zoom Use 0% Tactical HUD 1 Map Filters NONE Filters NONE Steam 1 RUN: 1e6be67e-0bb6-435e-bb6f-1b63390fbd04